[Event "*** Titled Tuesday Blitz"]
[Site "Chess.com"]
[Date "2020.12.29"]
[Round "11"]
[White "Blue_Ratatoeskr"]
[Black "MVM2008"]
[Result "1-0"]
[WhiteElo "2352"]
[BlackElo "2213"]
[TimeControl "180+1"]
[EndTime "12:06:26 PST"]
[Termination "Blue_Ratatoeskr won by resignation"]

1. c4 {[%clk 0:02:34.6]} 1... Nf6 {[%clk 0:02:58.3]} 2. g3 {[%clk 0:02:31.7]}
2... g6 {[%clk 0:02:57.1]} 3. Bg2 {[%clk 0:02:32.2]} 3... d5 {[%clk 0:02:56]} 4.
cxd5 {[%clk 0:02:31]} 4... Nxd5 {[%clk 0:02:56.9]} 5. Nc3 {[%clk 0:02:31.1]}
5... Nxc3 {[%clk 0:02:57]} 6. bxc3 {[%clk 0:02:32]} 6... Bg7 {[%clk 0:02:56.7]}
7. h4 {[%clk 0:02:32.7]} 7... c6 {[%clk 0:02:50]} 8. h5 {[%clk 0:02:32.5]} 8...
Bg4 {[%clk 0:02:44.6]} 9. hxg6 {[%clk 0:02:21.4]} 9... hxg6 {[%clk 0:02:40.7]}
10. Rxh8+ {[%clk 0:02:21.4]} 10... Bxh8 {[%clk 0:02:41.6]} 11. Rb1 {[%clk
0:02:16.8]} 11... Qd7 {[%clk 0:02:15.5]} 12. Qb3 {[%clk 0:02:13.1]} 12... b6
{[%clk 0:02:00.1]} 13. d3 {[%clk 0:01:55.3]} 13... Na6 {[%clk 0:01:52.5]} 14.
Qa4 {[%clk 0:01:44]} 14... Bxc3+ {[%clk 0:01:42.9]} 15. Kf1 {[%clk 0:01:43.6]}
15... Nc5 {[%clk 0:00:59]} 16. Qxc6 {[%clk 0:01:34.6]} 16... Rd8 {[%clk
0:00:58.6]} 17. Be3 {[%clk 0:01:25.9]} 17... Qxc6 {[%clk 0:00:47.6]} 18. Bxc6+
{[%clk 0:01:24.6]} 18... Bd7 {[%clk 0:00:48.1]} 19. Bg2 {[%clk 0:01:20]} 19...
Ne6 {[%clk 0:00:42.9]} 20. Nf3 {[%clk 0:01:19.2]} 20... Bc6 {[%clk 0:00:31.7]}
21. Rc1 {[%clk 0:01:17.7]} 21... Bxf3 {[%clk 0:00:31.8]} 22. Bxf3 {[%clk
0:01:09.2]} 22... Bd4 {[%clk 0:00:31.4]} 23. Bh6 {[%clk 0:00:56.5]} 23... Bc5
{[%clk 0:00:22.4]} 24. Bc6+ {[%clk 0:00:47.1]} 24... Rd7 {[%clk 0:00:22.3]} 25.
e3 {[%clk 0:00:42.2]} 25... Kd8 {[%clk 0:00:18.1]} 26. Bxd7 {[%clk 0:00:42.2]}
26... Kxd7 {[%clk 0:00:19]} 27. d4 {[%clk 0:00:41.7]} 27... Bd6 {[%clk
0:00:09.8]} 28. Bf4 {[%clk 0:00:40.8]} 28... Ba3 {[%clk 0:00:08.7]} 29. Rc3
{[%clk 0:00:38.6]} 29... Bb4 {[%clk 0:00:06.3]} 30. Rc4 {[%clk 0:00:37.1]} 30...
a5 {[%clk 0:00:05.7]} 31. Bb8 {[%clk 0:00:28.9]} 31... b5 {[%clk 0:00:04.2]} 32.
Rc2 {[%clk 0:00:27.3]} 32... Nd8 {[%clk 0:00:03.8]} 33. g4 {[%clk 0:00:24.8]}
33... Nc6 {[%clk 0:00:03.8]} 34. Bg3 {[%clk 0:00:24.4]} 34... f6 {[%clk
0:00:03]} 35. Ke2 {[%clk 0:00:24.5]} 35... e5 {[%clk 0:00:02.9]} 36. Kd3 {[%clk
0:00:23.7]} 36... exd4 {[%clk 0:00:03]} 37. exd4 {[%clk 0:00:24.6]} 37... Bd6
{[%clk 0:00:03.5]} 38. Bxd6 {[%clk 0:00:22.4]} 38... Kxd6 {[%clk 0:00:04.4]} 39.
Rc5 {[%clk 0:00:22.8]} 39... Na7 {[%clk 0:00:02.7]} 40. Ke4 {[%clk 0:00:20.5]}
40... a4 {[%clk 0:00:01.8]} 41. a3 {[%clk 0:00:18.9]} 41... b4 {[%clk
0:00:01.9]} 42. axb4 {[%clk 0:00:17]} 42... Nc6 {[%clk 0:00:02.5]} 43. b5 {[%clk
0:00:13.5]} 43... Nb4 {[%clk 0:00:02.7]} 44. Rc4 {[%clk 0:00:11.7]} 44... Na2
{[%clk 0:00:01.7]} 45. Kd3 {[%clk 0:00:09]} 45... a3 {[%clk 0:00:01.9]} 46. Kc2
{[%clk 0:00:07.9]} 46... Kd5 {[%clk 0:00:01.5]} 47. Ra4 {[%clk 0:00:08.4]} 47...
Nb4+ {[%clk 0:00:01.5]} 48. Rxb4 {[%clk 0:00:08]} 48... a2 {[%clk 0:00:02.4]}
49. Ra4 {[%clk 0:00:08.4]} 49... a1=Q {[%clk 0:00:02.9]} 50. Rxa1 {[%clk
0:00:08.8]} 1-0

[Event "*** Titled Tuesday Blitz"]
[Site "Chess.com"]
[Date "2020.12.29"]
[Round "11"]
[White "VladaSviridova"]
[Black "Training_Day"]
[Result "0-1"]
[WhiteElo "2260"]
[BlackElo "2379"]
[TimeControl "180+1"]
[EndTime "12:06:29 PST"]
[Termination "Training_Day won on time"]

1. d4 {[%clk 0:03:00.9]} 1... Nf6 {[%clk 0:02:56.8]} 2. c4 {[%clk 0:03:00.7]}
2... g6 {[%clk 0:02:57.2]} 3. Nc3 {[%clk 0:03:00.7]} 3... d5 {[%clk 0:02:57.5]}
4. cxd5 {[%clk 0:03:00.7]} 4... Nxd5 {[%clk 0:02:58.4]} 5. e4 {[%clk 0:03:01.1]}
5... Nxc3 {[%clk 0:02:58.3]} 6. bxc3 {[%clk 0:03:01.8]} 6... Bg7 {[%clk
0:02:58.6]} 7. Bc4 {[%clk 0:03:02.5]} 7... c5 {[%clk 0:02:58.2]} 8. Ne2 {[%clk
0:03:03.1]} 8... O-O {[%clk 0:02:56.8]} 9. O-O {[%clk 0:03:03.3]} 9... Nc6
{[%clk 0:02:56.7]} 10. Be3 {[%clk 0:03:03.5]} 10... e6 {[%clk 0:02:53]} 11. Rc1
{[%clk 0:03:01.8]} 11... b6 {[%clk 0:02:33.7]} 12. Qd2 {[%clk 0:02:55.4]} 12...
Bb7 {[%clk 0:02:32.1]} 13. Rfd1 {[%clk 0:02:53.9]} 13... Qc7 {[%clk 0:02:25.5]}
14. Bf4 {[%clk 0:02:34.7]} 14... e5 {[%clk 0:02:22.5]} 15. Bg3 {[%clk
0:02:34.8]} 15... Na5 {[%clk 0:02:09.8]} 16. Bd3 {[%clk 0:02:34.7]} 16... Qe7
{[%clk 0:01:58.6]} 17. dxe5 {[%clk 0:01:48.6]} 17... Bxe5 {[%clk 0:01:52.6]} 18.
Bxe5 {[%clk 0:01:45.9]} 18... Qxe5 {[%clk 0:01:52.3]} 19. Qf4 {[%clk 0:01:38.7]}
19... Nc6 {[%clk 0:01:33.1]} 20. Qxe5 {[%clk 0:01:23.9]} 20... Nxe5 {[%clk
0:01:32.4]} 21. Bc2 {[%clk 0:01:15.3]} 21... Rad8 {[%clk 0:01:25.8]} 22. h3
{[%clk 0:01:05.8]} 22... Kg7 {[%clk 0:01:04.2]} 23. f4 {[%clk 0:01:02.2]} 23...
Nc4 {[%clk 0:01:03.9]} 24. Kf2 {[%clk 0:01:02.3]} 24... Na3 {[%clk 0:00:55.5]}
25. e5 {[%clk 0:00:29.4]} 25... Nxc2 {[%clk 0:00:48.5]} 26. Rxd8 {[%clk
0:00:29.1]} 26... Rxd8 {[%clk 0:00:47.7]} 27. Rxc2 {[%clk 0:00:28.8]} 27... Be4
{[%clk 0:00:38]} 28. Rb2 {[%clk 0:00:28.7]} 28... Rd3 {[%clk 0:00:25.8]} 29. c4
{[%clk 0:00:20.3]} 29... Bf5 {[%clk 0:00:20.6]} 30. Nc1 {[%clk 0:00:17.7]} 30...
Rd4 {[%clk 0:00:20]} 31. Nb3 {[%clk 0:00:15.8]} 31... Rxc4 {[%clk 0:00:19.6]}
32. g4 {[%clk 0:00:15.2]} 32... Be6 {[%clk 0:00:16.8]} 33. Ke3 {[%clk
0:00:15.5]} 33... Rc3+ {[%clk 0:00:15.8]} 34. Ke4 {[%clk 0:00:13.4]} 34... Rxh3
{[%clk 0:00:15.8]} 35. Nd2 {[%clk 0:00:11.7]} 35... Bxg4 {[%clk 0:00:11.9]} 36.
a4 {[%clk 0:00:07.9]} 36... Bf5+ {[%clk 0:00:09.9]} 37. Kd5 {[%clk 0:00:07.4]}
37... Rd3+ {[%clk 0:00:08.6]} 38. Kc6 {[%clk 0:00:07.1]} 38... Rd4 {[%clk
0:00:07.2]} 39. a5 {[%clk 0:00:07.2]} 39... bxa5 {[%clk 0:00:05.7]} 40. Kxc5
{[%clk 0:00:06.7]} 40... Rxf4 {[%clk 0:00:05.1]} 41. Nc4 {[%clk 0:00:06.5]}
41... h5 {[%clk 0:00:02.8]} 42. Nxa5 {[%clk 0:00:05.6]} 42... h4 {[%clk
0:00:03.1]} 43. Nc4 {[%clk 0:00:04.6]} 43... h3 {[%clk 0:00:03.5]} 44. Rh2
{[%clk 0:00:03.9]} 44... Rf3 {[%clk 0:00:02.9]} 45. Nd2 {[%clk 0:00:03.4]} 45...
Rg3 {[%clk 0:00:03.1]} 46. Nf1 {[%clk 0:00:03.1]} 46... Rg2 {[%clk 0:00:03.1]}
47. Rh1 {[%clk 0:00:03.1]} 47... Rf2 {[%clk 0:00:02.2]} 48. Ng3 {[%clk
0:00:02.9]} 48... a5 {[%clk 0:00:02.6]} 49. Nxf5+ {[%clk 0:00:03]} 49... gxf5
{[%clk 0:00:03.5]} 50. Rxh3 {[%clk 0:00:03.5]} 50... Re2 {[%clk 0:00:03]} 0-1

[Event "*** Titled Tuesday Blitz"]
[Site "Chess.com"]
[Date "2020.12.29"]
[Round "11"]
[White "drragnar1"]
[Black "ChessQueen"]
[Result "0-1"]
[WhiteElo "2441"]
[BlackElo "2710"]
[TimeControl "180+1"]
[EndTime "12:06:33 PST"]
[Termination "ChessQueen won by resignation"]

1. g3 {[%clk 0:03:00.7]} 1... d5 {[%clk 0:02:59.1]} 2. Bg2 {[%clk 0:03:00.5]}
2... Nf6 {[%clk 0:02:58.8]} 3. Nf3 {[%clk 0:03:00.1]} 3... Nc6 {[%clk
0:02:57.6]} 4. O-O {[%clk 0:02:59.2]} 4... e5 {[%clk 0:02:57.9]} 5. d3 {[%clk
0:02:56]} 5... Be7 {[%clk 0:02:57.9]} 6. c4 {[%clk 0:02:55.5]} 6... dxc4 {[%clk
0:02:53.9]} 7. dxc4 {[%clk 0:02:56.4]} 7... Be6 {[%clk 0:02:44.5]} 8. b3 {[%clk
0:02:49.4]} 8... Qc8 {[%clk 0:02:34.5]} 9. Bb2 {[%clk 0:02:47.4]} 9... e4 {[%clk
0:02:20.6]} 10. Ng5 {[%clk 0:02:30.2]} 10... Bf5 {[%clk 0:02:09]} 11. Nc3 {[%clk
0:02:28.7]} 11... e3 {[%clk 0:02:07.4]} 12. f4 {[%clk 0:01:33.2]} 12... O-O
{[%clk 0:01:56.7]} 13. Nd5 {[%clk 0:01:32.4]} 13... Nxd5 {[%clk 0:01:50.9]} 14.
cxd5 {[%clk 0:01:32.5]} 14... Nb4 {[%clk 0:01:44.1]} 15. Ne4 {[%clk 0:01:24.7]}
15... Rd8 {[%clk 0:01:23.4]} 16. Qd4 {[%clk 0:01:17.5]} 16... Bf8 {[%clk
0:01:22.2]} 17. Rac1 {[%clk 0:01:06.4]} 17... Nxd5 {[%clk 0:01:16.4]} 18. Ng5
{[%clk 0:00:54]} 18... c6 {[%clk 0:01:06.6]} 19. Rfd1 {[%clk 0:00:48]} 19... f6
{[%clk 0:00:57.7]} 20. Nf3 {[%clk 0:00:36.2]} 20... Qe6 {[%clk 0:00:57.6]} 21.
Nh4 {[%clk 0:00:33.5]} 21... Bg4 {[%clk 0:00:43.2]} 22. Qc4 {[%clk 0:00:30.4]}
22... Nb4 {[%clk 0:00:35.5]} 23. Qxe6+ {[%clk 0:00:21]} 23... Bxe6 {[%clk
0:00:35.4]} 24. f5 {[%clk 0:00:21]} 24... Bf7 {[%clk 0:00:34.1]} 25. a3 {[%clk
0:00:18.8]} 25... Na2 {[%clk 0:00:26.7]} 26. Ra1 {[%clk 0:00:14.9]} 26... Bxb3
{[%clk 0:00:26.7]} 27. Rxd8 {[%clk 0:00:15]} 27... Rxd8 {[%clk 0:00:26.4]} 28.
Be4 {[%clk 0:00:14.8]} 28... Rd2 {[%clk 0:00:24.7]} 29. Rb1 {[%clk 0:00:13]}
29... Rd1+ {[%clk 0:00:21.7]} 30. Rxd1 {[%clk 0:00:12.3]} 30... Bxd1 {[%clk
0:00:22.6]} 31. Bd3 {[%clk 0:00:11.3]} 31... b5 {[%clk 0:00:19]} 32. Nf3 {[%clk
0:00:10.3]} 32... Bb3 {[%clk 0:00:16.5]} 33. Nd4 {[%clk 0:00:10.1]} 33... Bd5
{[%clk 0:00:16.5]} 34. Bb1 {[%clk 0:00:08.3]} 34... b4 {[%clk 0:00:15.6]} 35.
Nxc6 {[%clk 0:00:05.8]} 35... Nc3 {[%clk 0:00:13.6]} 36. Bxc3 {[%clk 0:00:05.9]}
36... bxc3 {[%clk 0:00:14]} 37. Nd4 {[%clk 0:00:06.8]} 37... Bxa3 {[%clk
0:00:13.3]} 38. Kf1 {[%clk 0:00:07.5]} 38... Bc5 {[%clk 0:00:13.3]} 39. Nc2
{[%clk 0:00:07.6]} 39... a5 {[%clk 0:00:13.7]} 40. Ke1 {[%clk 0:00:06.8]} 40...
a4 {[%clk 0:00:14.2]} 41. Kd1 {[%clk 0:00:07.3]} 41... a3 {[%clk 0:00:14.8]} 42.
Ne1 {[%clk 0:00:07.8]} 42... a2 {[%clk 0:00:14.1]} 43. Bxa2 {[%clk 0:00:08.7]}
43... Bxa2 {[%clk 0:00:14.4]} 44. Kc2 {[%clk 0:00:09.6]} 44... Bd4 {[%clk
0:00:14]} 45. Nf3 {[%clk 0:00:09]} 45... Be5 {[%clk 0:00:14.4]} 46. Nxe5 {[%clk
0:00:09.3]} 46... fxe5 {[%clk 0:00:14.8]} 47. Kxc3 {[%clk 0:00:10.2]} 47... Kf7
{[%clk 0:00:15.3]} 48. Kd3 {[%clk 0:00:10.7]} 48... Kf6 {[%clk 0:00:15.6]} 49.
Kxe3 {[%clk 0:00:11.3]} 49... Kxf5 {[%clk 0:00:15.7]} 50. Kf3 {[%clk 0:00:12.2]}
50... h5 {[%clk 0:00:16]} 51. Kf2 {[%clk 0:00:13.1]} 51... Kg4 {[%clk
0:00:16.2]} 52. Kg2 {[%clk 0:00:14]} 52... Bd5+ {[%clk 0:00:16.5]} 53. Kf2
{[%clk 0:00:14]} 53... Kh3 {[%clk 0:00:16.8]} 54. Kg1 {[%clk 0:00:14.7]} 54...
Bc4 {[%clk 0:00:16.9]} 55. e3 {[%clk 0:00:14.8]} 55... Bd5 {[%clk 0:00:16.9]}
56. Kf2 {[%clk 0:00:14.2]} 56... Kxh2 {[%clk 0:00:17.1]} 0-1

[Event "*** Titled Tuesday Blitz"]
[Site "Chess.com"]
[Date "2020.12.29"]
[Round "11"]
[White "olksuna"]
[Black "Mikhail_Golubev"]
[Result "1-0"]
[WhiteElo "2648"]
[BlackElo "2509"]
[TimeControl "180+1"]
[EndTime "12:06:37 PST"]
[Termination "olksuna won on time"]

1. e4 {[%clk 0:03:00.9]} 1... c5 {[%clk 0:02:56.8]} 2. Nf3 {[%clk 0:03:00.5]}
2... d6 {[%clk 0:02:56.8]} 3. c3 {[%clk 0:02:56.4]} 3... Nf6 {[%clk 0:02:55.6]}
4. Be2 {[%clk 0:02:55.7]} 4... Nbd7 {[%clk 0:02:52.8]} 5. Qc2 {[%clk 0:02:53.7]}
5... Qc7 {[%clk 0:02:51.6]} 6. O-O {[%clk 0:02:51.3]} 6... e6 {[%clk 0:02:50.9]}
7. Na3 {[%clk 0:02:50.8]} 7... Be7 {[%clk 0:02:50.7]} 8. d4 {[%clk 0:02:51]}
8... cxd4 {[%clk 0:02:50.2]} 9. Nxd4 {[%clk 0:02:51]} 9... a6 {[%clk 0:02:43.5]}
10. Nc4 {[%clk 0:02:45.8]} 10... b5 {[%clk 0:02:38.1]} 11. Ne3 {[%clk
0:02:45.5]} 11... Bb7 {[%clk 0:02:33.8]} 12. f3 {[%clk 0:02:42.4]} 12... Rc8
{[%clk 0:02:30.9]} 13. a4 {[%clk 0:02:41]} 13... b4 {[%clk 0:02:20.3]} 14. cxb4
{[%clk 0:02:36.9]} 14... Qb6 {[%clk 0:02:19.2]} 15. Qd2 {[%clk 0:02:31.8]} 15...
d5 {[%clk 0:02:18.5]} 16. a5 {[%clk 0:02:28.3]} 16... Qxb4 {[%clk 0:02:10.9]}
17. exd5 {[%clk 0:02:24.4]} 17... Nxd5 {[%clk 0:01:46.5]} 18. Nxd5 {[%clk
0:02:21.4]} 18... Bxd5 {[%clk 0:01:47.1]} 19. Qxb4 {[%clk 0:02:19.3]} 19... Bxb4
{[%clk 0:01:46.2]} 20. Bxa6 {[%clk 0:02:18.6]} 20... Ra8 {[%clk 0:01:43.6]} 21.
Bb5 {[%clk 0:02:06]} 21... Rxa5 {[%clk 0:01:28.5]} 22. Be3 {[%clk 0:02:01.1]}
22... Ke7 {[%clk 0:01:15.8]} 23. Bc6 {[%clk 0:01:45.7]} 23... Rc8 {[%clk
0:00:43.7]} 24. Rxa5 {[%clk 0:01:42.2]} 24... Bxa5 {[%clk 0:00:42.6]} 25. Bxd5
{[%clk 0:01:42.4]} 25... exd5 {[%clk 0:00:42.5]} 26. Ra1 {[%clk 0:01:42]} 26...
Bb6 {[%clk 0:00:39.8]} 27. b4 {[%clk 0:01:37.9]} 27... g6 {[%clk 0:00:34.4]} 28.
Bg5+ {[%clk 0:01:14.3]} 28... f6 {[%clk 0:00:29.9]} 29. Be3 {[%clk 0:01:13.9]}
29... Kf7 {[%clk 0:00:16.3]} 30. b5 {[%clk 0:01:00.5]} 30... Ne5 {[%clk
0:00:15.8]} 31. Bf2 {[%clk 0:00:53.9]} 31... Nd3 {[%clk 0:00:15.5]} 32. Rd1
{[%clk 0:00:36]} 32... Nxf2 {[%clk 0:00:11.6]} 33. Kxf2 {[%clk 0:00:36.9]} 33...
Rc4 {[%clk 0:00:11.4]} 34. Ke3 {[%clk 0:00:36.4]} 34... Rb4 {[%clk 0:00:10.7]}
35. Rd2 {[%clk 0:00:19.6]} 35... g5 {[%clk 0:00:09.5]} 36. g4 {[%clk 0:00:17.9]}
36... Ke7 {[%clk 0:00:08.1]} 37. Rc2 {[%clk 0:00:06.1]} 37... Bxd4+ {[%clk
0:00:06.7]} 38. Kd3 {[%clk 0:00:04.7]} 38... Be5 {[%clk 0:00:06.5]} 39. Ra2
{[%clk 0:00:03.8]} 39... Rxb5 {[%clk 0:00:05.7]} 40. Ra7+ {[%clk 0:00:04.7]}
40... Ke6 {[%clk 0:00:04.9]} 41. Rxh7 {[%clk 0:00:05.6]} 41... Rb3+ {[%clk
0:00:04]} 42. Ke2 {[%clk 0:00:06.5]} 42... Rb2+ {[%clk 0:00:03.6]} 43. Kd3
{[%clk 0:00:06.2]} 43... Rb3+ {[%clk 0:00:03.9]} 44. Ke2 {[%clk 0:00:06.2]}
44... d4 {[%clk 0:00:04.2]} 45. h4 {[%clk 0:00:06.5]} 45... d3+ {[%clk
0:00:04.2]} 46. Kf2 {[%clk 0:00:06.4]} 46... Bf4 {[%clk 0:00:03.9]} 47. hxg5
{[%clk 0:00:06.2]} 47... fxg5 {[%clk 0:00:03.5]} 48. Rh6+ {[%clk 0:00:05.7]}
48... Kf7 {[%clk 0:00:03.5]} 49. Rh7+ {[%clk 0:00:05.1]} 49... Kg6 {[%clk
0:00:03.5]} 50. Rd7 {[%clk 0:00:05.7]} 50... d2 {[%clk 0:00:03.2]} 51. Kg2
{[%clk 0:00:03.7]} 51... Rb1 {[%clk 0:00:03.1]} 52. Kh3 {[%clk 0:00:02.3]} 52...
d1=Q {[%clk 0:00:02.6]} 53. Rd2 {[%clk 0:00:02.3]} 1-0

[Event "*** Titled Tuesday Blitz"]
[Site "Chess.com"]
[Date "2020.12.29"]
[Round "11"]
[White "KubaGepard"]
[Black "PenguinPacks"]
[Result "0-1"]
[WhiteElo "2299"]
[BlackElo "2452"]
[TimeControl "180+1"]
[EndTime "12:06:42 PST"]
[Termination "PenguinPacks won on time"]

1. e4 {[%clk 0:02:59.8]} 1... c6 {[%clk 0:02:50]} 2. c4 {[%clk 0:02:56.6]} 2...
d5 {[%clk 0:02:46.5]} 3. Nc3 {[%clk 0:02:57.1]} 3... dxe4 {[%clk 0:02:44.6]} 4.
Nxe4 {[%clk 0:02:55.9]} 4... e5 {[%clk 0:02:44.9]} 5. Nf3 {[%clk 0:02:51.8]}
5... Bg4 {[%clk 0:02:45.4]} 6. h3 {[%clk 0:02:48]} 6... Bh5 {[%clk 0:02:43.4]}
7. Ng3 {[%clk 0:02:44.9]} 7... Bxf3 {[%clk 0:02:39.3]} 8. Qxf3 {[%clk
0:02:43.6]} 8... Nf6 {[%clk 0:02:39.3]} 9. d3 {[%clk 0:02:40.9]} 9... Bc5 {[%clk
0:02:31.4]} 10. Bg5 {[%clk 0:02:39.1]} 10... Nbd7 {[%clk 0:02:31.9]} 11. Nh5
{[%clk 0:02:32.2]} 11... Rg8 {[%clk 0:02:27.9]} 12. a3 {[%clk 0:02:17.4]} 12...
Qb6 {[%clk 0:01:50.5]} 13. b4 {[%clk 0:01:49.4]} 13... Bxf2+ {[%clk 0:01:40.9]}
14. Qxf2 {[%clk 0:01:35.6]} 14... Qxf2+ {[%clk 0:01:41.8]} 15. Kxf2 {[%clk
0:01:36.3]} 15... Nxh5 {[%clk 0:01:41.1]} 16. g4 {[%clk 0:01:36.1]} 16... Nf4
{[%clk 0:01:41.1]} 17. Bxf4 {[%clk 0:01:35]} 17... exf4 {[%clk 0:01:42]} 18.
Re1+ {[%clk 0:01:34.3]} 18... Kd8 {[%clk 0:01:42.5]} 19. g5 {[%clk 0:01:32.7]}
19... Re8 {[%clk 0:01:39.8]} 20. Bg2 {[%clk 0:01:28.6]} 20... Kc7 {[%clk
0:01:35]} 21. d4 {[%clk 0:01:27.2]} 21... f6 {[%clk 0:01:33.5]} 22. h4 {[%clk
0:01:26.1]} 22... a5 {[%clk 0:01:28.4]} 23. b5 {[%clk 0:01:21.8]} 23... cxb5
{[%clk 0:01:24]} 24. cxb5 {[%clk 0:01:21.2]} 24... a4 {[%clk 0:01:23.4]} 25. Kf3
{[%clk 0:01:07.7]} 25... fxg5 {[%clk 0:00:55]} 26. hxg5 {[%clk 0:01:06.4]} 26...
Nf8 {[%clk 0:00:55.5]} 27. Kxf4 {[%clk 0:01:03.3]} 27... Ne6+ {[%clk 0:00:53.9]}
28. Kg4 {[%clk 0:01:02]} 28... Nxd4 {[%clk 0:00:52.8]} 29. Rc1+ {[%clk
0:01:01.4]} 29... Kb6 {[%clk 0:00:49.2]} 30. Rxh7 {[%clk 0:01:01.8]} 30... Re7
{[%clk 0:00:49.3]} 31. Bf1 {[%clk 0:00:34.9]} 31... Rf8 {[%clk 0:00:29.7]} 32.
Kh5 {[%clk 0:00:31.7]} 32... Nf3 {[%clk 0:00:16]} 33. Bg2 {[%clk 0:00:23.8]}
33... Ne5 {[%clk 0:00:08.6]} 34. Rd1 {[%clk 0:00:17]} 34... Rff7 {[%clk
0:00:08.5]} 35. g6 {[%clk 0:00:16.5]} 35... Rf5+ {[%clk 0:00:08.1]} 36. Kh4
{[%clk 0:00:16.7]} 36... Nxg6+ {[%clk 0:00:08.4]} 37. Kg3 {[%clk 0:00:17.2]}
37... Rg5+ {[%clk 0:00:08.5]} 38. Kh2 {[%clk 0:00:16.8]} 38... Re2 {[%clk
0:00:08.5]} 39. Rg1 {[%clk 0:00:15.5]} 39... Nf4 {[%clk 0:00:08.2]} 40. Rh4
{[%clk 0:00:08.1]} 40... Rexg2+ {[%clk 0:00:07.7]} 41. Rxg2 {[%clk 0:00:07.6]}
41... Nxg2 {[%clk 0:00:08.1]} 42. Rd4 {[%clk 0:00:06.9]} 42... Ne3 {[%clk
0:00:07.9]} 43. Re4 {[%clk 0:00:06.1]} 43... Nd5 {[%clk 0:00:07.9]} 44. Rxa4
{[%clk 0:00:04.3]} 44... Kxb5 {[%clk 0:00:07.8]} 45. Ra7 {[%clk 0:00:04.5]}
45... Kb6 {[%clk 0:00:08]} 46. Ra8 {[%clk 0:00:04.7]} 46... Nc7 {[%clk
0:00:08.3]} 47. Rd8 {[%clk 0:00:04.2]} 47... Ra5 {[%clk 0:00:08.6]} 48. Rd6+
{[%clk 0:00:04.4]} 48... Ka7 {[%clk 0:00:08.9]} 49. Rd3 {[%clk 0:00:04.4]} 49...
Nb5 {[%clk 0:00:09.1]} 50. Rg3 {[%clk 0:00:04.2]} 50... Rxa3 {[%clk 0:00:09.3]}
51. Rxg7 {[%clk 0:00:04.7]} 51... Rc3 {[%clk 0:00:09.5]} 52. Rg5 {[%clk
0:00:05.2]} 52... Kb6 {[%clk 0:00:09]} 53. Kg2 {[%clk 0:00:05.6]} 53... Rc6
{[%clk 0:00:09.5]} 54. Rf5 {[%clk 0:00:05.7]} 54... Nd6 {[%clk 0:00:10.4]} 55.
Rd5 {[%clk 0:00:05.4]} 55... Kc7 {[%clk 0:00:10.7]} 56. Rd2 {[%clk 0:00:04.8]}
56... b5 {[%clk 0:00:11.1]} 57. Kf3 {[%clk 0:00:05.3]} 57... Kb6 {[%clk
0:00:11.6]} 58. Rb2 {[%clk 0:00:05.4]} 58... Nc4 {[%clk 0:00:10.9]} 59. Rb4
{[%clk 0:00:03.4]} 59... Kc5 {[%clk 0:00:10.7]} 60. Rb1 {[%clk 0:00:02.8]} 60...
Nd2+ {[%clk 0:00:10.9]} 61. Ke2 {[%clk 0:00:03.7]} 61... Nxb1 {[%clk 0:00:11.8]}
0-1